[Event "Titled Tuesday Blitz April 12 Early 2022"]
[White "Cagara, Paulina"]
[Black "Yanayt, Eugene"]
[WhiteFideId "1124870"]
[BlackFideId "2020165"]
[WhiteElo "1780"]
[BlackElo "2046"]
[Result "0-1"]
[Round "11"]
[TimeControl "180+1"]
[Date "2022.04.13"]
[WhiteClock "0:00:11"]
[BlackClock "0:01:02"]

1. e4 {[%clk 0:03:00]}  c5 {[%clk 0:02:55]} 2. Nc3 {[%clk 0:03:00]}  g6 {[%clk 0:02:54]} 3. g3 {[%clk 0:03:00]}  Bg7 {[%clk 0:02:54]} 4. Bg2 {[%clk 0:03:00]}  Nc6 {[%clk 0:02:54]} 5. d3 {[%clk 0:03:00]}  e6 {[%clk 0:02:52]} 6. f4 {[%clk 0:03:00]}  Nge7 {[%clk 0:02:51]} 7. Nf3 {[%clk 0:02:58]}  d5 {[%clk 0:02:50]} 8. O-O {[%clk 0:02:58]}  O-O {[%clk 0:02:50]} 9. h3 {[%clk 0:02:56]}  Rb8 {[%clk 0:02:49]} 10. Qe1 {[%clk 0:02:56]}  b5 {[%clk 0:02:49]} 11. g4 {[%clk 0:02:55]}  b4 {[%clk 0:02:49]} 12. Nd1 {[%clk 0:02:55]}  f5 {[%clk 0:02:47]} 13. gxf5 {[%clk 0:02:49]}  exf5 {[%clk 0:02:44]} 14. exd5 {[%clk 0:02:47]}  Nxd5 {[%clk 0:02:42]} 15. Ne5 {[%clk 0:02:43]}  Nxe5 {[%clk 0:02:11]} 16. fxe5 {[%clk 0:02:42]}  Re8 {[%clk 0:02:11]} 17. c4 {[%clk 0:02:27]}  bxc3 {[%clk 0:02:08]} 18. Nxc3 {[%clk 0:02:26]}  Nxc3 {[%clk 0:02:07]} 19. bxc3 {[%clk 0:02:25]}  Bxe5 {[%clk 0:02:06]} 20. Qd2 {[%clk 0:02:18]}  Qh4 {[%clk 0:01:57]} 21. Ba3 {[%clk 0:01:51]}  Qg3 {[%clk 0:01:48]} 22. Rfe1 {[%clk 0:01:51]}  Bb7 {[%clk 0:01:41]} 23. Bxc5 {[%clk 0:01:37]}  Bxc3 {[%clk 0:01:41]} 24. Rxe8+ {[%clk 0:01:32]}  Rxe8 {[%clk 0:01:39]} 25. Bd6 {[%clk 0:01:11]}  Bd4+ {[%clk 0:01:34]} 26. Kh1 {[%clk 0:00:52]}  Qxh3+ {[%clk 0:01:21]} 27. Bh2 {[%clk 0:00:48]}  Be5 {[%clk 0:01:18]} 28. Bxb7 {[%clk 0:00:44]}  Bxa1 {[%clk 0:01:13]} 29. Bd5+ {[%clk 0:00:38]}  Kh8 {[%clk 0:01:12]} 30. Bg2 {[%clk 0:00:37]}  Qh4 {[%clk 0:01:11]} 31. Be4 {[%clk 0:00:17]}  fxe4 {[%clk 0:01:08]} 32. Qd1 {[%clk 0:00:13]}  Be5 {[%clk 0:01:05]} 33. Qg1 {[%clk 0:00:11]}  exd3 {[%clk 0:01:02]} 0-1


[Site "https://www.chess.com"]

[Event "Titled Tuesday Blitz April 12 Early 2022"]
[White "Caruana, Fabiano"]
[Black "Sjugirov, Sanan"]
[WhiteFideId "2020009"]
[BlackFideId "4189302"]
[WhiteElo "2744"]
[BlackElo "2602"]
[Result "0-1"]
[Round "11"]
[TimeControl "180+1"]
[Date "2022.04.12"]
[WhiteClock "0:00:07"]
[BlackClock "0:00:07"]

1. d4 {[%clk 0:03:00]}  Nf6 {[%clk 0:02:59]} 2. Bf4 {[%clk 0:02:57]}  d5 {[%clk 0:02:54]} 3. Nf3 {[%clk 0:02:57]}  c5 {[%clk 0:02:43]} 4. e3 {[%clk 0:02:56]}  Nc6 {[%clk 0:02:34]} 5. Be2 {[%clk 0:02:56]}  cxd4 {[%clk 0:02:32]} 6. exd4 {[%clk 0:02:55]}  Bg4 {[%clk 0:02:31]} 7. c3 {[%clk 0:02:54]}  Bxf3 {[%clk 0:02:24]} 8. Bxf3 {[%clk 0:02:54]}  e6 {[%clk 0:02:25]} 9. Nd2 {[%clk 0:02:52]}  Bd6 {[%clk 0:02:25]} 10. Bg5 {[%clk 0:02:47]}  h6 {[%clk 0:02:25]} 11. Bh4 {[%clk 0:02:47]}  O-O {[%clk 0:02:23]} 12. O-O {[%clk 0:02:45]}  a6 {[%clk 0:02:15]} 13. Be2 {[%clk 0:02:44]}  b5 {[%clk 0:02:05]} 14. a3 {[%clk 0:02:43]}  Be7 {[%clk 0:01:54]} 15. Bd3 {[%clk 0:02:37]}  Na5 {[%clk 0:01:49]} 16. b4 {[%clk 0:02:26]}  Nc4 {[%clk 0:01:48]} 17. Nxc4 {[%clk 0:02:26]}  bxc4 {[%clk 0:01:43]} 18. Bc2 {[%clk 0:02:23]}  a5 {[%clk 0:01:33]} 19. Qf3 {[%clk 0:02:06]}  Ra7 {[%clk 0:01:26]} 20. Bg3 {[%clk 0:01:37]}  Qb6 {[%clk 0:01:23]} 21. bxa5 {[%clk 0:01:30]}  Qxa5 {[%clk 0:01:22]} 22. a4 {[%clk 0:01:30]}  Ne4 {[%clk 0:01:09]} 23. Bxe4 {[%clk 0:01:25]}  dxe4 {[%clk 0:01:10]} 24. Qe3 {[%clk 0:01:09]}  f5 {[%clk 0:01:09]} 25. Be5 {[%clk 0:01:05]}  Rb7 {[%clk 0:00:52]} 26. Qg3 {[%clk 0:00:56]}  Rf7 {[%clk 0:00:51]} 27. Qg6 {[%clk 0:00:48]}  Bf6 {[%clk 0:00:48]} 28. Bxf6 {[%clk 0:00:37]}  Rxf6 {[%clk 0:00:49]} 29. Qe8+ {[%clk 0:00:37]}  Kh7 {[%clk 0:00:50]} 30. Qc6 {[%clk 0:00:37]}  Rb3 {[%clk 0:00:46]} 31. Qxc4 {[%clk 0:00:33]}  Rxc3 {[%clk 0:00:47]} 32. Qe2 {[%clk 0:00:33]}  Rf7 {[%clk 0:00:40]} 33. Rfd1 {[%clk 0:00:29]}  Rd7 {[%clk 0:00:35]} 34. h3 {[%clk 0:00:21]}  Rd5 {[%clk 0:00:33]} 35. Qa2 {[%clk 0:00:17]}  Rc7 {[%clk 0:00:25]} 36. Qb3 {[%clk 0:00:17]}  Rcd7 {[%clk 0:00:24]} 37. Qe3 {[%clk 0:00:17]}  e5 {[%clk 0:00:24]} 38. g4 {[%clk 0:00:11]}  exd4 {[%clk 0:00:23]} 39. Qg3 {[%clk 0:00:12]}  d3 {[%clk 0:00:20]} 40. Kh2 {[%clk 0:00:09]}  R7d6 {[%clk 0:00:11]} 41. Qf4 {[%clk 0:00:08]}  Re6 {[%clk 0:00:08]} 42. Rg1 {[%clk 0:00:07]}  d2 {[%clk 0:00:07]} 43. Rad1 {[%clk 0:00:05]}  g5 {[%clk 0:00:06]} 44. Qb8 {[%clk 0:00:04]}  Rd7 {[%clk 0:00:03]} 45. Qc8 {[%clk 0:00:03]}  Qc7+ {[%clk 0:00:04]} 46. Qxc7 {[%clk 0:00:03]}  Rxc7 {[%clk 0:00:04]} 47. gxf5 {[%clk 0:00:03]}  Rd6 {[%clk 0:00:04]} 48. Rg4 {[%clk 0:00:03]}  Rc1 {[%clk 0:00:04]} 49. Rgg1 {[%clk 0:00:04]}  Kg7 {[%clk 0:00:04]} 50. Kg3 {[%clk 0:00:04]}  Rc4 {[%clk 0:00:03]} 51. a5 {[%clk 0:00:03]}  Ra4 {[%clk 0:00:03]} 52. h4 {[%clk 0:00:02]}  Kf6 {[%clk 0:00:03]} 53. hxg5+ {[%clk 0:00:03]}  hxg5 {[%clk 0:00:04]} 54. Rh1 {[%clk 0:00:03]}  Kxf5 {[%clk 0:00:04]} 55. Rh8 {[%clk 0:00:03]}  Ra3+ {[%clk 0:00:05]} 56. Kg2 {[%clk 0:00:02]}  Rxa5 {[%clk 0:00:05]} 57. Rf8+ {[%clk 0:00:02]}  Kg4 {[%clk 0:00:05]} 58. Re8 {[%clk 0:00:03]}  Ra4 {[%clk 0:00:05]} 59. Rf8 {[%clk 0:00:02]}  Rc4 {[%clk 0:00:06]} 60. f3+ {[%clk 0:00:03]}  exf3+ {[%clk 0:00:06]} 61. Rxf3 {[%clk 0:00:04]}  Rc1 {[%clk 0:00:06]} 62. Rff1 {[%clk 0:00:04]}  Rxd1 {[%clk 0:00:06]} 63. Rxd1 {[%clk 0:00:05]}  Kf4 {[%clk 0:00:06]} 64. Kf2 {[%clk 0:00:06]}  g4 {[%clk 0:00:07]} 65. Ke2 {[%clk 0:00:07]}  g3 {[%clk 0:00:07]} 66. Rh1 {[%clk 0:00:07]}  g2 {[%clk 0:00:07]} 0-1


[Site "https://www.chess.com"]

[Event "Titled Tuesday Blitz April 12 Early 2022"]
[White "Clawitter, Craig"]
[Black "Fernandez Siles, Luis"]
[WhiteFideId "2023105"]
[BlackFideId "2209420"]
[WhiteElo "2221"]
[BlackElo "2212"]
[Result "1-0"]
[Round "11"]
[TimeControl "180+1"]
[Date "2022.04.13"]
[WhiteClock "0:00:05"]
[BlackClock "0:00:28"]

1. e4 {[%clk 0:03:00]}  c5 {[%clk 0:02:58]} 2. Nf3 {[%clk 0:02:58]}  Nc6 {[%clk 0:02:58]} 3. d4 {[%clk 0:02:58]}  cxd4 {[%clk 0:02:59]} 4. Nxd4 {[%clk 0:02:59]}  Nf6 {[%clk 0:02:59]} 5. Nc3 {[%clk 0:02:59]}  e5 {[%clk 0:02:59]} 6. Ndb5 {[%clk 0:02:59]}  d6 {[%clk 0:02:59]} 7. Bg5 {[%clk 0:02:59]}  a6 {[%clk 0:03:00]} 8. Na3 {[%clk 0:03:00]}  b5 {[%clk 0:03:01]} 9. Bxf6 {[%clk 0:03:00]}  gxf6 {[%clk 0:03:01]} 10. Nd5 {[%clk 0:03:01]}  Bg7 {[%clk 0:03:01]} 11. Bd3 {[%clk 0:03:01]}  Ne7 {[%clk 0:02:58]} 12. Nxe7 {[%clk 0:03:02]}  Qxe7 {[%clk 0:02:59]} 13. O-O {[%clk 0:03:02]}  O-O {[%clk 0:02:58]} 14. c3 {[%clk 0:03:02]}  f5 {[%clk 0:02:56]} 15. exf5 {[%clk 0:03:01]}  e4 {[%clk 0:02:56]} 16. Re1 {[%clk 0:02:58]}  d5 {[%clk 0:02:56]} 17. Nc2 {[%clk 0:02:48]}  Bxf5 {[%clk 0:02:53]} 18. a4 {[%clk 0:02:38]}  Qb7 {[%clk 0:02:45]} 19. Bf1 {[%clk 0:02:31]}  bxa4 {[%clk 0:02:40]} 20. Nb4 {[%clk 0:01:25]}  Be6 {[%clk 0:02:38]} 21. Qxa4 {[%clk 0:01:11]}  a5 {[%clk 0:02:31]} 22. Nc6 {[%clk 0:01:06]}  Qxb2 {[%clk 0:02:27]} 23. c4 {[%clk 0:00:46]}  Qf6 {[%clk 0:01:50]} 24. Rac1 {[%clk 0:00:20]}  d4 {[%clk 0:01:26]} 25. c5 {[%clk 0:00:16]}  Bd7 {[%clk 0:01:23]} 26. Bb5 {[%clk 0:00:16]}  Bh6 {[%clk 0:01:10]} 27. Rcd1 {[%clk 0:00:14]}  e3 {[%clk 0:01:10]} 28. Qxd4 {[%clk 0:00:11]}  Qxf2+ {[%clk 0:01:07]} 29. Kh1 {[%clk 0:00:11]}  Bg7 {[%clk 0:00:56]} 30. Qxd7 {[%clk 0:00:11]}  e2 {[%clk 0:00:52]} 31. Rxe2 {[%clk 0:00:11]}  Qxe2 {[%clk 0:00:51]} 32. Bxe2 {[%clk 0:00:09]}  Rac8 {[%clk 0:00:47]} 33. Ne7+ {[%clk 0:00:09]}  Kh8 {[%clk 0:00:47]} 34. Nxc8 {[%clk 0:00:09]}  a4 {[%clk 0:00:44]} 35. Bc4 {[%clk 0:00:10]}  a3 {[%clk 0:00:43]} 36. c6 {[%clk 0:00:10]}  Bf6 {[%clk 0:00:41]} 37. c7 {[%clk 0:00:10]}  Kg7 {[%clk 0:00:42]} 38. Nd6 {[%clk 0:00:09]}  Be5 {[%clk 0:00:34]} 39. Ne8+ {[%clk 0:00:09]}  Kg8 {[%clk 0:00:33]} 40. c8=Q {[%clk 0:00:10]}  a2 {[%clk 0:00:31]} 41. Nf6+ {[%clk 0:00:08]}  Bxf6 {[%clk 0:00:30]} 42. Qxf8+ {[%clk 0:00:08]}  Kxf8 {[%clk 0:00:31]} 43. Qc8+ {[%clk 0:00:08]}  Kg7 {[%clk 0:00:31]} 44. Qd7 {[%clk 0:00:07]}  Kg6 {[%clk 0:00:30]} 45. Qxf7+ {[%clk 0:00:07]}  Kf5 {[%clk 0:00:30]} 46. Rf1+ {[%clk 0:00:06]}  Ke4 {[%clk 0:00:29]} 47. Qxf6 {[%clk 0:00:06]}  a1=Q {[%clk 0:00:30]} 48. Qxa1 {[%clk 0:00:05]}  h5 {[%clk 0:00:30]} 49. Qe1+ {[%clk 0:00:05]}  Kd4 {[%clk 0:00:30]} 50. Rf4+ {[%clk 0:00:05]}  Kc5 {[%clk 0:00:30]} 51. Qe5+ {[%clk 0:00:04]}  Kb4 {[%clk 0:00:30]} 52. Bg8+ {[%clk 0:00:04]}  Ka3 {[%clk 0:00:29]} 53. Qe3+ {[%clk 0:00:04]}  Kb2 {[%clk 0:00:28]} 54. Rf2+ {[%clk 0:00:04]}  Kb1 {[%clk 0:00:28]} 55. Qe1# {[%clk 0:00:05]} 1-0


[Site "https://www.chess.com"]

[Event "Titled Tuesday Blitz April 12 Early 2022"]
[White "Dang, Hoang Son"]
[Black "Garv Gaur"]
[WhiteFideId "12402435"]
[BlackFideId "45030839"]
[WhiteElo "2252"]
[BlackElo "1950"]
[Result "0-1"]
[Round "11"]
[TimeControl "180+1"]
[Date "2022.04.13"]
[WhiteClock "0:01:27"]
[BlackClock "0:01:56"]

1. d4 {[%clk 0:03:00]}  d5 {[%clk 0:02:58]} 2. Bf4 {[%clk 0:03:01]}  Nf6 {[%clk 0:02:57]} 3. e3 {[%clk 0:02:56]}  c5 {[%clk 0:02:57]} 4. Nf3 {[%clk 0:02:56]}  Nc6 {[%clk 0:02:56]} 5. Nbd2 {[%clk 0:02:55]}  cxd4 {[%clk 0:02:56]} 6. exd4 {[%clk 0:02:56]}  Bf5 {[%clk 0:02:56]} 7. c3 {[%clk 0:02:56]}  e6 {[%clk 0:02:56]} 8. h3 {[%clk 0:02:54]}  Bd6 {[%clk 0:02:54]} 9. Be3 {[%clk 0:02:44]}  O-O {[%clk 0:02:53]} 10. g4 {[%clk 0:02:40]}  Bg6 {[%clk 0:02:46]} 11. Nh4 {[%clk 0:02:39]}  Be4 {[%clk 0:02:35]} 12. Nxe4 {[%clk 0:02:37]}  Nxe4 {[%clk 0:02:34]} 13. Nf3 {[%clk 0:02:32]}  f5 {[%clk 0:02:34]} 14. Bd3 {[%clk 0:02:29]}  Qf6 {[%clk 0:02:31]} 15. g5 {[%clk 0:02:26]}  Qf7 {[%clk 0:02:29]} 16. Qe2 {[%clk 0:02:25]}  a6 {[%clk 0:02:20]} 17. O-O-O {[%clk 0:02:21]}  b5 {[%clk 0:02:20]} 18. a3 {[%clk 0:02:19]}  Rac8 {[%clk 0:02:17]} 19. h4 {[%clk 0:02:04]}  b4 {[%clk 0:02:15]} 20. axb4 {[%clk 0:02:02]}  Nxb4 {[%clk 0:02:13]} 21. h5 {[%clk 0:01:53]}  Nxc3 {[%clk 0:01:57]} 22. bxc3 {[%clk 0:01:51]}  Rxc3+ {[%clk 0:01:58]} 23. Kb2 {[%clk 0:01:47]}  Qc7 {[%clk 0:01:57]} 24. Rc1 {[%clk 0:01:30]}  Nxd3+ {[%clk 0:01:57]} 25. Qxd3 {[%clk 0:01:30]}  Rb8+ {[%clk 0:01:56]} 26. Ka2 {[%clk 0:01:27]}  Qa5# {[%clk 0:01:56]} 0-1


[Site "https://www.chess.com"]

[Event "Titled Tuesday Blitz April 12 Early 2022"]
[White "De Arruda, Leandro Formes"]
[Black "Fathy, Elameir"]
[WhiteFideId "22722009"]
[BlackFideId "10600396"]
[WhiteElo "1852"]
[BlackElo "2311"]
[Result "1/2-1/2"]
[Round "11"]
[TimeControl "180+1"]
[Date "2022.04.13"]
[WhiteClock "0:00:09"]
[BlackClock "0:00:04"]

1. d4 {[%clk 0:03:00]}  d5 {[%clk 0:02:59]} 2. Nf3 {[%clk 0:03:00]}  Nf6 {[%clk 0:02:59]} 3. e3 {[%clk 0:03:01]}  c5 {[%clk 0:02:59]} 4. c3 {[%clk 0:03:02]}  Nc6 {[%clk 0:02:53]} 5. Nbd2 {[%clk 0:03:01]}  cxd4 {[%clk 0:02:53]} 6. exd4 {[%clk 0:03:02]}  Bf5 {[%clk 0:02:53]} 7. Be2 {[%clk 0:03:01]}  e6 {[%clk 0:02:53]} 8. O-O {[%clk 0:03:02]}  Bd6 {[%clk 0:02:54]} 9. Re1 {[%clk 0:03:01]}  O-O {[%clk 0:02:54]} 10. b3 {[%clk 0:03:00]}  Qc7 {[%clk 0:02:54]} 11. Bb2 {[%clk 0:03:00]}  a6 {[%clk 0:02:54]} 12. Rc1 {[%clk 0:03:00]}  b5 {[%clk 0:02:54]} 13. c4 {[%clk 0:02:59]}  bxc4 {[%clk 0:02:51]} 14. bxc4 {[%clk 0:03:00]}  Rab8 {[%clk 0:02:48]} 15. Bc3 {[%clk 0:02:57]}  Ba3 {[%clk 0:02:46]} 16. Ra1 {[%clk 0:02:55]}  Rfd8 {[%clk 0:02:40]} 17. Nb3 {[%clk 0:02:42]}  Ne4 {[%clk 0:02:27]} 18. Qd3 {[%clk 0:01:50]}  Nxf2 {[%clk 0:02:06]} 19. Qe3 {[%clk 0:01:50]}  Ne4 {[%clk 0:01:57]} 20. cxd5 {[%clk 0:01:41]}  exd5 {[%clk 0:01:56]} 21. Nc5 {[%clk 0:01:38]}  Nxc5 {[%clk 0:01:29]} 22. dxc5 {[%clk 0:01:38]}  Re8 {[%clk 0:01:08]} 23. Qg5 {[%clk 0:01:33]}  Bxc5+ {[%clk 0:01:06]} 24. Kh1 {[%clk 0:01:33]}  Bg6 {[%clk 0:00:59]} 25. Bxa6 {[%clk 0:01:19]}  Qd7 {[%clk 0:00:25]} 26. Rad1 {[%clk 0:00:58]}  Rxe1+ {[%clk 0:00:24]} 27. Rxe1 {[%clk 0:00:58]}  f6 {[%clk 0:00:20]} 28. Qh4 {[%clk 0:00:46]}  Be4 {[%clk 0:00:16]} 29. Nd2 {[%clk 0:00:42]}  Bg6 {[%clk 0:00:07]} 30. Qg3 {[%clk 0:00:29]}  Bd6 {[%clk 0:00:06]} 31. Qf3 {[%clk 0:00:28]}  Bf7 {[%clk 0:00:03]} 32. Bd3 {[%clk 0:00:26]}  Ne5 {[%clk 0:00:03]} 33. Bxe5 {[%clk 0:00:25]}  Bxe5 {[%clk 0:00:03]} 34. Qf2 {[%clk 0:00:18]}  Ra8 {[%clk 0:00:02]} 35. Qh4 {[%clk 0:00:16]}  g6 {[%clk 0:00:02]} 36. Nb3 {[%clk 0:00:11]}  Qd6 {[%clk 0:00:02]} 37. h3 {[%clk 0:00:08]}  Re8 {[%clk 0:00:02]} 38. Qh6 {[%clk 0:00:07]}  f5 {[%clk 0:00:02]} 39. Qg5 {[%clk 0:00:06]}  Bf6 {[%clk 0:00:02]} 40. Rxe8+ {[%clk 0:00:06]}  Bxe8 {[%clk 0:00:03]} 41. Qd2 {[%clk 0:00:06]}  Qe7 {[%clk 0:00:03]} 42. Qe2 {[%clk 0:00:06]}  Bf7 {[%clk 0:00:03]} 43. Qxe7 {[%clk 0:00:06]}  Bxe7 {[%clk 0:00:04]} 44. Nd4 {[%clk 0:00:07]}  Kg7 {[%clk 0:00:04]} 45. Kg1 {[%clk 0:00:07]}  Kf6 {[%clk 0:00:05]} 46. Kf1 {[%clk 0:00:07]}  Bc5 {[%clk 0:00:05]} 47. Nf3 {[%clk 0:00:07]}  d4 {[%clk 0:00:05]} 48. a4 {[%clk 0:00:07]}  Bd5 {[%clk 0:00:05]} 49. a5 {[%clk 0:00:07]}  Bb7 {[%clk 0:00:04]} 50. a6 {[%clk 0:00:07]}  Ba8 {[%clk 0:00:04]} 51. Ke2 {[%clk 0:00:07]}  h6 {[%clk 0:00:04]} 52. Ne1 {[%clk 0:00:08]}  Ke5 {[%clk 0:00:04]} 53. Kf2 {[%clk 0:00:08]}  g5 {[%clk 0:00:05]} 54. Nc2 {[%clk 0:00:08]}  Be4 {[%clk 0:00:04]} 55. Ne1 {[%clk 0:00:07]}  Ba7 {[%clk 0:00:03]} 56. Nf3+ {[%clk 0:00:06]}  Bxf3 {[%clk 0:00:01]} 57. Kxf3 {[%clk 0:00:07]}  h5 {[%clk 0:00:01]} 58. Kf2 {[%clk 0:00:06]}  g4 {[%clk 0:00:02]} 59. hxg4 {[%clk 0:00:06]}  hxg4 {[%clk 0:00:02]} 60. Kg3 {[%clk 0:00:05]}  Kf6 {[%clk 0:00:02]} 61. Kf2 {[%clk 0:00:06]}  f4 {[%clk 0:00:02]} 62. g3 {[%clk 0:00:07]}  fxg3+ {[%clk 0:00:02]} 63. Kxg3 {[%clk 0:00:08]}  Kg5 {[%clk 0:00:02]} 64. Be4 {[%clk 0:00:08]}  Bb8+ {[%clk 0:00:03]} 65. Kg2 {[%clk 0:00:08]}  Ba7 {[%clk 0:00:04]} 66. Bd3 {[%clk 0:00:08]}  Kf4 {[%clk 0:00:05]} 67. Be2 {[%clk 0:00:07]}  g3 {[%clk 0:00:04]} 68. Bf3 {[%clk 0:00:06]}  Bb8 {[%clk 0:00:04]} 69. Bh5 {[%clk 0:00:05]}  d3 {[%clk 0:00:04]} 70. Bd1 {[%clk 0:00:05]}  Ke3 {[%clk 0:00:03]} 71. Bf3 {[%clk 0:00:06]}  d2 {[%clk 0:00:03]} 72. Bd1 {[%clk 0:00:06]}  Kd3 {[%clk 0:00:04]} 73. Bf3 {[%clk 0:00:06]}  Kc3 {[%clk 0:00:03]} 74. Bd1 {[%clk 0:00:07]}  Kb2 {[%clk 0:00:03]} 75. Kf3 {[%clk 0:00:07]}  Kc1 {[%clk 0:00:03]} 76. Be2 {[%clk 0:00:07]}  d1=Q {[%clk 0:00:02]} 77. Bxd1 {[%clk 0:00:08]}  Kxd1 {[%clk 0:00:03]} 78. a7 {[%clk 0:00:08]}  Bxa7 {[%clk 0:00:04]} 79. Kxg3 {[%clk 0:00:09]} 1/2-1/2


[Site "https://www.chess.com"]

[Event "Titled Tuesday Blitz April 12 Early 2022"]
[White "Demin, Vladimir"]
[Black "Kouskoutis, Georgios-Alexandros"]
[WhiteFideId "4167457"]
[BlackFideId "4234049"]
[WhiteElo "2405"]
[BlackElo "2130"]
[Result "0-1"]
[Round "11"]
[TimeControl "180+1"]
[Date "2022.04.13"]
[WhiteClock "0:01:04"]
[BlackClock "0:00:06"]

1. d4 {[%clk 0:03:00]}  Nf6 {[%clk 0:02:58]} 2. g4 {[%clk 0:03:00]}  h6 {[%clk 0:02:41]} 3. h3 {[%clk 0:02:59]}  c5 {[%clk 0:02:34]} 4. c3 {[%clk 0:02:58]}  d5 {[%clk 0:02:18]} 5. Bg2 {[%clk 0:02:57]}  cxd4 {[%clk 0:02:17]} 6. cxd4 {[%clk 0:02:57]}  Nc6 {[%clk 0:02:18]} 7. Nc3 {[%clk 0:02:55]}  e6 {[%clk 0:02:18]} 8. Nf3 {[%clk 0:02:54]}  Bd6 {[%clk 0:02:05]} 9. O-O {[%clk 0:02:51]}  O-O {[%clk 0:02:05]} 10. a3 {[%clk 0:02:46]}  a6 {[%clk 0:01:51]} 11. b4 {[%clk 0:02:45]}  b5 {[%clk 0:01:47]} 12. Qd3 {[%clk 0:02:26]}  Bb7 {[%clk 0:01:44]} 13. Kh1 {[%clk 0:02:19]}  Ne7 {[%clk 0:01:23]} 14. g5 {[%clk 0:02:13]}  Ne4 {[%clk 0:01:03]} 15. gxh6 {[%clk 0:02:10]}  g6 {[%clk 0:01:03]} 16. h7+ {[%clk 0:02:04]}  Kh8 {[%clk 0:01:01]} 17. Ng5 {[%clk 0:02:03]}  Nxg5 {[%clk 0:00:52]} 18. Bxg5 {[%clk 0:02:02]}  f6 {[%clk 0:00:52]} 19. Bd2 {[%clk 0:01:53]}  Nf5 {[%clk 0:00:47]} 20. e4 {[%clk 0:01:49]}  dxe4 {[%clk 0:00:46]} 21. Nxe4 {[%clk 0:01:50]}  Be7 {[%clk 0:00:41]} 22. Bc3 {[%clk 0:01:47]}  Bd5 {[%clk 0:00:36]} 23. Rg1 {[%clk 0:01:42]}  Rc8 {[%clk 0:00:32]} 24. Rad1 {[%clk 0:01:41]}  Kxh7 {[%clk 0:00:22]} 25. Bb2 {[%clk 0:01:39]}  Rh8 {[%clk 0:00:20]} 26. Ng3 {[%clk 0:01:18]}  Kg7 {[%clk 0:00:15]} 27. Nxf5+ {[%clk 0:01:11]}  exf5 {[%clk 0:00:16]} 28. Kh2 {[%clk 0:01:11]}  Bd6+ {[%clk 0:00:07]} 29. Qg3 {[%clk 0:01:04]}  Bxg3+ {[%clk 0:00:07]} 30. fxg3 {[%clk 0:01:04]}  Rc2 {[%clk 0:00:06]} 0-1


[Site "https://www.chess.com"]

[Event "Titled Tuesday Blitz April 12 Early 2022"]
[White "Dubov, Daniil"]
[Black "Kobalia, Mikhail"]
[WhiteFideId "24126055"]
[BlackFideId "4119150"]
[WhiteElo "2791"]
[BlackElo "2667"]
[Result "1-0"]
[Round "11"]
[TimeControl "180+1"]
[Date "2022.04.12"]
[WhiteClock "0:00:47"]
[BlackClock "0:00:22"]

1. a3 {[%clk 0:03:00]}  e5 {[%clk 0:02:59]} 2. c4 {[%clk 0:02:56]}  Nf6 {[%clk 0:02:58]} 3. Nc3 {[%clk 0:02:56]}  d5 {[%clk 0:02:56]} 4. cxd5 {[%clk 0:02:56]}  Nxd5 {[%clk 0:02:57]} 5. Qc2 {[%clk 0:02:55]}  Nc6 {[%clk 0:02:56]} 6. e3 {[%clk 0:02:55]}  Be7 {[%clk 0:02:55]} 7. b4 {[%clk 0:02:54]}  Nxc3 {[%clk 0:02:54]} 8. Qxc3 {[%clk 0:02:51]}  a6 {[%clk 0:02:54]} 9. Bb2 {[%clk 0:02:50]}  O-O {[%clk 0:02:53]} 10. Qc2 {[%clk 0:02:46]}  f5 {[%clk 0:02:50]} 11. Bc4+ {[%clk 0:02:42]}  Kh8 {[%clk 0:02:49]} 12. h4 {[%clk 0:02:43]}  Bf6 {[%clk 0:02:49]} 13. Nf3 {[%clk 0:02:41]}  e4 {[%clk 0:02:41]} 14. Ng5 {[%clk 0:02:41]}  Qe7 {[%clk 0:02:31]} 15. f4 {[%clk 0:02:37]}  exf3 {[%clk 0:02:29]} 16. gxf3 {[%clk 0:02:34]}  a5 {[%clk 0:02:04]} 17. b5 {[%clk 0:02:13]}  Ne5 {[%clk 0:02:03]} 18. Ba2 {[%clk 0:02:00]}  Bxg5 {[%clk 0:01:56]} 19. hxg5 {[%clk 0:01:59]}  Nxf3+ {[%clk 0:01:56]} 20. Kf2 {[%clk 0:01:57]}  Nxg5 {[%clk 0:01:56]} 21. Rag1 {[%clk 0:01:56]}  Ne4+ {[%clk 0:00:47]} 22. Ke1 {[%clk 0:01:52]}  Nf6 {[%clk 0:00:47]} 23. Qc4 {[%clk 0:01:46]}  Bd7 {[%clk 0:00:41]} 24. Qxc7 {[%clk 0:01:00]}  Rae8 {[%clk 0:00:37]} 25. Rxh7+ {[%clk 0:00:49]}  Nxh7 {[%clk 0:00:24]} 26. Bxg7+ {[%clk 0:00:49]}  Qxg7 {[%clk 0:00:23]} 27. Rxg7 {[%clk 0:00:50]}  Kxg7 {[%clk 0:00:23]} 28. Qxd7+ {[%clk 0:00:50]}  Kg6 {[%clk 0:00:22]} 29. Bf7+ {[%clk 0:00:47]} 1-0


[Site "https://www.chess.com"]

[Event "Titled Tuesday Blitz April 12 Early 2022"]
[White "Efremova, Yulia"]
[Black "Shohat, Yotam"]
[WhiteFideId "14113953"]
[BlackFideId "2813955"]
[WhiteElo "2107"]
[BlackElo "2119"]
[Result "0-1"]
[Round "11"]
[TimeControl "180+1"]
[Date "2022.04.13"]
[WhiteClock "0:01:53"]
[BlackClock "0:00:42"]

1. d4 {[%clk 0:03:00]}  Nf6 {[%clk 0:02:57]} 2. Nf3 {[%clk 0:03:00]}  c5 {[%clk 0:02:53]} 3. c3 {[%clk 0:02:59]}  g6 {[%clk 0:02:31]} 4. Bf4 {[%clk 0:02:57]}  Bg7 {[%clk 0:02:30]} 5. e3 {[%clk 0:02:57]}  O-O {[%clk 0:02:30]} 6. Be2 {[%clk 0:02:55]}  d6 {[%clk 0:02:23]} 7. Nbd2 {[%clk 0:02:54]}  cxd4 {[%clk 0:02:23]} 8. exd4 {[%clk 0:02:53]}  Nc6 {[%clk 0:02:24]} 9. h3 {[%clk 0:02:52]}  e5 {[%clk 0:02:16]} 10. dxe5 {[%clk 0:02:51]}  dxe5 {[%clk 0:02:17]} 11. Nxe5 {[%clk 0:02:51]}  Nxe5 {[%clk 0:02:17]} 12. Bxe5 {[%clk 0:02:51]}  Qe7 {[%clk 0:02:13]} 13. Nf3 {[%clk 0:02:45]}  Rd8 {[%clk 0:02:07]} 14. Qb3 {[%clk 0:02:40]}  Be6 {[%clk 0:02:00]} 15. Qb4 {[%clk 0:02:32]}  Qxb4 {[%clk 0:01:56]} 16. cxb4 {[%clk 0:02:33]}  Nd5 {[%clk 0:01:54]} 17. Bxg7 {[%clk 0:02:32]}  Kxg7 {[%clk 0:01:55]} 18. a3 {[%clk 0:02:24]}  Nf4 {[%clk 0:01:55]} 19. Bf1 {[%clk 0:02:19]}  Rac8 {[%clk 0:01:40]} 20. g3 {[%clk 0:02:15]}  Bd5 {[%clk 0:01:31]} 21. gxf4 {[%clk 0:02:03]}  Bxf3 {[%clk 0:01:31]} 22. Rg1 {[%clk 0:02:02]}  Rc2 {[%clk 0:01:26]} 23. Bg2 {[%clk 0:02:00]}  Re8+ {[%clk 0:01:08]} 24. Kf1 {[%clk 0:01:57]}  Be2+ {[%clk 0:01:08]} 25. Ke1 {[%clk 0:01:57]}  Bc4+ {[%clk 0:00:49]} 26. Kd1 {[%clk 0:01:57]}  Bb3 {[%clk 0:00:43]} 27. Bd5 {[%clk 0:01:53]}  Rd8 {[%clk 0:00:42]} 0-1


[Site "https://www.chess.com"]